[Event "Late-Titled-Tuesday-Blitz-October-10-2023"]
[Site "Chess.com"]
[Date "2023.10.10"]
[Round "1"]
[White "Road2GM3000"]
[Black "TanitoluwaAps116"]
[Result "0-1"]
[WhiteElo "2362"]
[BlackElo "2687"]
[TimeControl "180+1"]
[EndTime "14:04:52 PDT"]
[Termination "TanitoluwaAps116 won by resignation"]

1. d4 {[%clk 0:02:58.5]} 1... Nf6 {[%clk 0:02:55.6]} 2. c4 {[%clk 0:02:58.3]}
2... e6 {[%clk 0:02:50.2]} 3. Nf3 {[%clk 0:02:55.1]} 3... b6 {[%clk 0:02:42.9]}
4. Nc3 {[%clk 0:02:52.5]} 4... Bb7 {[%clk 0:02:42.3]} 5. Bg5 {[%clk 0:02:50.8]}
5... Be7 {[%clk 0:02:32.4]} 6. e3 {[%clk 0:02:49.9]} 6... O-O {[%clk 0:02:22.5]}
7. Bd3 {[%clk 0:02:49.5]} 7... d6 {[%clk 0:02:20]} 8. Qc2 {[%clk 0:02:48.3]}
8... Nbd7 {[%clk 0:02:18]} 9. O-O-O {[%clk 0:02:37.2]} 9... a6 {[%clk
0:02:11.2]} 10. Kb1 {[%clk 0:02:36.6]} 10... Qc8 {[%clk 0:02:06.2]} 11. e4
{[%clk 0:02:34.2]} 11... h6 {[%clk 0:01:48.7]} 12. Bh4 {[%clk 0:02:32.9]} 12...
Re8 {[%clk 0:01:44.1]} 13. h3 {[%clk 0:02:20.4]} 13... c5 {[%clk 0:01:23.8]} 14.
e5 {[%clk 0:02:16.3]} 14... dxe5 {[%clk 0:00:55.4]} 15. dxe5 {[%clk 0:02:13.8]}
15... Bxf3 {[%clk 0:00:55.1]} 16. gxf3 {[%clk 0:01:55.8]} 16... Nxe5 {[%clk
0:00:55]} 17. f4 {[%clk 0:01:39.3]} 17... Nf3 {[%clk 0:00:34.6]} 18. Bg3 {[%clk
0:01:35.2]} 18... Nd4 {[%clk 0:00:33.9]} 19. Ne4 {[%clk 0:01:32.9]} 19... Nxc2
{[%clk 0:00:33.1]} 0-1

[Event "Late-Titled-Tuesday-Blitz-October-10-2023"]
[Site "Chess.com"]
[Date "2023.10.10"]
[Round "1"]
[White "WindWhistler11"]
[Black "SpeedofLight0"]
[Result "0-1"]
[WhiteElo "2509"]
[BlackElo "3019"]
[TimeControl "180+1"]
[EndTime "14:05:17 PDT"]
[Termination "SpeedofLight0 won by resignation"]

1. Nf3 {[%clk 0:03:00]} 1... c5 {[%clk 0:02:59.2]} 2. g3 {[%clk 0:02:58.3]} 2...
g6 {[%clk 0:02:59.1]} 3. Bg2 {[%clk 0:02:56.9]} 3... Bg7 {[%clk 0:02:59.4]} 4.
d4 {[%clk 0:02:54.8]} 4... cxd4 {[%clk 0:02:59.3]} 5. Nxd4 {[%clk 0:02:54.6]}
5... Nc6 {[%clk 0:03:00]} 6. Nb3 {[%clk 0:02:54.1]} 6... Nf6 {[%clk 0:03:00]} 7.
O-O {[%clk 0:02:52.2]} 7... O-O {[%clk 0:03:00.4]} 8. Na3 {[%clk 0:02:50.7]}
8... b6 {[%clk 0:02:55.2]} 9. c3 {[%clk 0:02:51.6]} 9... Bb7 {[%clk 0:02:55.1]}
10. e4 {[%clk 0:02:45.4]} 10... d6 {[%clk 0:02:51.9]} 11. Re1 {[%clk 0:02:43.9]}
11... Rc8 {[%clk 0:02:49.5]} 12. h3 {[%clk 0:02:39.9]} 12... a6 {[%clk 0:02:45]}
13. Be3 {[%clk 0:02:33.3]} 13... b5 {[%clk 0:02:40.7]} 14. Nc2 {[%clk
0:02:32.9]} 14... Ne5 {[%clk 0:02:38.3]} 15. Nd2 {[%clk 0:02:22.4]} 15... Nd3
{[%clk 0:02:37]} 16. Qb1 {[%clk 0:02:02.4]} 16... Nxe1 {[%clk 0:02:36.5]} 17.
Qxe1 {[%clk 0:02:02.7]} 17... Nd7 {[%clk 0:02:33.2]} 18. a4 {[%clk 0:01:56.4]}
18... Ne5 {[%clk 0:02:29.1]} 19. Qe2 {[%clk 0:01:54.3]} 19... Nc4 {[%clk
0:02:23.5]} 20. Nxc4 {[%clk 0:01:43.8]} 20... bxc4 {[%clk 0:02:24.4]} 21. a5
{[%clk 0:01:42]} 21... Qd7 {[%clk 0:02:19.2]} 22. Na3 {[%clk 0:01:28.6]} 22...
Qe6 {[%clk 0:02:18.3]} 23. Bb6 {[%clk 0:01:18.6]} 23... f5 {[%clk 0:02:00.3]}
24. Re1 {[%clk 0:01:17.4]} 24... f4 {[%clk 0:02:00.5]} 25. Bf3 {[%clk
0:01:15.8]} 25... fxg3 {[%clk 0:01:56.4]} 26. fxg3 {[%clk 0:01:16.7]} 26... Qxh3
{[%clk 0:01:55.4]} 27. Qg2 {[%clk 0:01:11.4]} 27... Qe6 {[%clk 0:01:49]} 28. Qe2
{[%clk 0:01:05.7]} 28... h5 {[%clk 0:01:45.2]} 29. Kh2 {[%clk 0:01:02]} 29...
Rf7 {[%clk 0:01:44.3]} 30. Bg2 {[%clk 0:00:59.1]} 30... Be5 {[%clk 0:01:42.4]}
31. Bh3 {[%clk 0:00:55]} 31... Qf6 {[%clk 0:01:36.2]} 32. Bxc8 {[%clk
0:00:55.1]} 32... Bxc8 {[%clk 0:01:36.8]} 33. Nxc4 {[%clk 0:00:50.5]} 33... Qh4+
{[%clk 0:01:36.4]} 34. Kg2 {[%clk 0:00:40.7]} 34... Qxg3+ {[%clk 0:01:34.6]} 35.
Kh1 {[%clk 0:00:41]} 35... Bg4 {[%clk 0:01:35]} 0-1

[Event "Late-Titled-Tuesday-Blitz-October-10-2023"]
[Site "Chess.com"]
[Date "2023.10.10"]
[Round "1"]
[White "Smiechu"]
[Black "GMBenjaminBok"]
[Result "0-1"]
[WhiteElo "2506"]
[BlackElo "3010"]
[TimeControl "180+1"]
[EndTime "14:05:17 PDT"]
[Termination "GMBenjaminBok won by resignation"]

1. e4 {[%clk 0:02:59.6]} 1... c5 {[%clk 0:02:59.4]} 2. Nf3 {[%clk 0:02:59.2]}
2... d6 {[%clk 0:02:59.5]} 3. d4 {[%clk 0:02:59.8]} 3... cxd4 {[%clk 0:03:00.4]}
4. Nxd4 {[%clk 0:03:00.1]} 4... Nf6 {[%clk 0:03:00.7]} 5. Nc3 {[%clk 0:03:00.7]}
5... a6 {[%clk 0:03:00.7]} 6. Be3 {[%clk 0:03:01.2]} 6... e5 {[%clk 0:03:00.8]}
7. Nb3 {[%clk 0:03:01.5]} 7... Be6 {[%clk 0:03:01]} 8. Qd2 {[%clk 0:03:01.6]}
8... Be7 {[%clk 0:02:59.2]} 9. O-O-O {[%clk 0:03:01.8]} 9... Nbd7 {[%clk
0:02:59.2]} 10. f4 {[%clk 0:03:01.8]} 10... b5 {[%clk 0:02:59.5]} 11. f5 {[%clk
0:03:01.7]} 11... Bc4 {[%clk 0:02:59.6]} 12. g4 {[%clk 0:03:01.5]} 12... Nxg4
{[%clk 0:02:51.9]} 13. Rg1 {[%clk 0:03:01.3]} 13... Nxe3 {[%clk 0:02:29.6]} 14.
Qxe3 {[%clk 0:03:00.6]} 14... g6 {[%clk 0:02:29.8]} 15. Kb1 {[%clk 0:02:41.8]}
15... Qb6 {[%clk 0:02:26.8]} 16. Qg3 {[%clk 0:02:21.8]} 16... Nf6 {[%clk
0:02:18.5]} 17. fxg6 {[%clk 0:01:39.9]} 17... hxg6 {[%clk 0:02:17.2]} 18. Nd2
{[%clk 0:01:40]} 18... Be6 {[%clk 0:02:08.7]} 19. Nf3 {[%clk 0:01:35.5]} 19...
Rc8 {[%clk 0:01:54.5]} 20. Ng5 {[%clk 0:01:31.6]} 20... Nh5 {[%clk 0:01:48.6]}
21. Qg2 {[%clk 0:01:18.1]} 21... Nf4 {[%clk 0:01:48.5]} 22. Qg3 {[%clk
0:01:18.3]} 22... Bxg5 {[%clk 0:01:46.1]} 23. Qxg5 {[%clk 0:01:18.2]} 23... Rxh2
{[%clk 0:01:46.2]} 24. Bd3 {[%clk 0:01:06.6]} 24... b4 {[%clk 0:01:38.9]} 25.
Nd5 {[%clk 0:01:05.4]} 25... Bxd5 {[%clk 0:01:36.7]} 26. exd5 {[%clk 0:01:05.5]}
26... Nxd3 {[%clk 0:01:32]} 27. Rh1 {[%clk 0:00:45.5]} 27... Qf2 {[%clk
0:01:15.8]} 0-1

[Event "Late-Titled-Tuesday-Blitz-October-10-2023"]
[Site "Chess.com"]
[Date "2023.10.10"]
[Round "1"]
[White "MKlose11"]
[Black "Zampronha1971"]
[Result "1-0"]
[WhiteElo "2620"]
[BlackElo "2288"]
[TimeControl "180+1"]
[EndTime "14:05:20 PDT"]
[Termination "MKlose11 won by resignation"]

1. e4 {[%clk 0:02:55.3]} 1... c5 {[%clk 0:02:59.4]} 2. Nc3 {[%clk 0:02:54.2]}
2... Nc6 {[%clk 0:02:58.3]} 3. g3 {[%clk 0:02:55.1]} 3... g6 {[%clk 0:02:56.5]}
4. Bg2 {[%clk 0:02:56]} 4... Bg7 {[%clk 0:02:56.9]} 5. d3 {[%clk 0:02:56.9]}
5... d6 {[%clk 0:02:54.5]} 6. Be3 {[%clk 0:02:56.8]} 6... e6 {[%clk 0:02:53.6]}
7. Qd2 {[%clk 0:02:57.3]} 7... Nge7 {[%clk 0:02:48.9]} 8. Bh6 {[%clk 0:02:56.2]}
8... O-O {[%clk 0:02:46.2]} 9. h4 {[%clk 0:02:55.9]} 9... Nd4 {[%clk 0:02:43.2]}
10. Bxg7 {[%clk 0:02:54.4]} 10... Kxg7 {[%clk 0:02:42.1]} 11. h5 {[%clk
0:02:55.3]} 11... f6 {[%clk 0:02:20.4]} 12. hxg6 {[%clk 0:02:54.1]} 12... hxg6
{[%clk 0:02:21.3]} 13. Qh6+ {[%clk 0:02:50.2]} 13... Kf7 {[%clk 0:02:21.8]} 14.
O-O-O {[%clk 0:02:50.9]} 14... Rg8 {[%clk 0:02:14.4]} 15. Nge2 {[%clk 0:02:44]}
15... Nxe2+ {[%clk 0:02:11.7]} 16. Nxe2 {[%clk 0:02:44.9]} 16... Qf8 {[%clk
0:02:10.3]} 17. Qh7+ {[%clk 0:02:26.8]} 17... Rg7 {[%clk 0:02:07.1]} 18. Qh2
{[%clk 0:02:25.5]} 18... Bd7 {[%clk 0:02:01.6]} 19. d4 {[%clk 0:02:25.6]} 19...
cxd4 {[%clk 0:01:51]} 20. Rxd4 {[%clk 0:02:17.1]} 20... Nc6 {[%clk 0:01:51.3]}
21. Rd2 {[%clk 0:02:14.6]} 21... Rd8 {[%clk 0:01:49.2]} 22. Rhd1 {[%clk
0:02:11.8]} 22... Bc8 {[%clk 0:01:48.2]} 23. f4 {[%clk 0:02:08.6]} 23... Kg8
{[%clk 0:01:47.2]} 24. a3 {[%clk 0:02:05.1]} 24... Rc7 {[%clk 0:01:35.6]} 25.
Kb1 {[%clk 0:02:00.3]} 25... b6 {[%clk 0:01:26.1]} 26. e5 {[%clk 0:01:46.5]}
26... dxe5 {[%clk 0:01:10.6]} 27. Bxc6 {[%clk 0:01:46.2]} 27... Rxd2 {[%clk
0:01:09.4]} 28. Rxd2 {[%clk 0:01:47.1]} 28... Rxc6 {[%clk 0:01:09.6]} 29. fxe5
{[%clk 0:01:47.4]} 29... fxe5 {[%clk 0:00:56.3]} 30. Nc3 {[%clk 0:01:38.3]}
30... Qf1+ {[%clk 0:00:49.6]} 31. Rd1 {[%clk 0:01:36.7]} 31... Qf3 {[%clk
0:00:45.8]} 32. Rd8+ {[%clk 0:01:30]} 32... Kf7 {[%clk 0:00:41.8]} 33. Qh7+
{[%clk 0:01:30]} 33... Kf6 {[%clk 0:00:36.2]} 34. Rf8+ {[%clk 0:01:30.9]} 1-0

[Event "Late-Titled-Tuesday-Blitz-October-10-2023"]
[Site "Chess.com"]
[Date "2023.10.10"]
[Round "1"]
[White "ArtemDyachuk"]
[Black "cottage_cheese"]
[Result "1-0"]
[WhiteElo "2636"]
[BlackElo "2323"]
[TimeControl "180+1"]
[EndTime "14:05:27 PDT"]
[Termination "ArtemDyachuk won by checkmate"]

1. e4 {[%clk 0:03:00.9]} 1... e5 {[%clk 0:02:58.6]} 2. Nf3 {[%clk 0:03:01.1]}
2... Nc6 {[%clk 0:02:58.1]} 3. Bb5 {[%clk 0:03:01.6]} 3... a6 {[%clk 0:02:57.7]}
4. Ba4 {[%clk 0:03:00.9]} 4... Nf6 {[%clk 0:02:57.3]} 5. d3 {[%clk 0:02:59.9]}
5... b5 {[%clk 0:02:52.2]} 6. Bb3 {[%clk 0:02:59.8]} 6... Bc5 {[%clk 0:02:50.1]}
7. c3 {[%clk 0:02:57.1]} 7... d6 {[%clk 0:02:45.2]} 8. O-O {[%clk 0:02:56.2]}
8... O-O {[%clk 0:02:39.6]} 9. h3 {[%clk 0:02:55.2]} 9... h6 {[%clk 0:02:19.4]}
10. d4 {[%clk 0:02:50.4]} 10... Bb6 {[%clk 0:02:02.5]} 11. Re1 {[%clk
0:02:50.3]} 11... Bb7 {[%clk 0:01:55.3]} 12. Bc2 {[%clk 0:02:47]} 12... Re8
{[%clk 0:01:49.3]} 13. a4 {[%clk 0:02:35.3]} 13... exd4 {[%clk 0:01:35.5]} 14.
cxd4 {[%clk 0:02:36.2]} 14... Nb4 {[%clk 0:01:23]} 15. Nbd2 {[%clk 0:02:25.6]}
15... Nxc2 {[%clk 0:01:14.8]} 16. Qxc2 {[%clk 0:02:26.5]} 16... d5 {[%clk
0:01:14.2]} 17. e5 {[%clk 0:02:25.9]} 17... Ne4 {[%clk 0:01:13.9]} 18. Nf1
{[%clk 0:02:25.9]} 18... c5 {[%clk 0:01:11.4]} 19. axb5 {[%clk 0:02:23.6]} 19...
axb5 {[%clk 0:01:10.4]} 20. Rxa8 {[%clk 0:02:23.2]} 20... Qxa8 {[%clk
0:01:10.8]} 21. Be3 {[%clk 0:02:23.1]} 21... c4 {[%clk 0:01:05.1]} 22. N3d2
{[%clk 0:02:20.2]} 22... Nxd2 {[%clk 0:01:02.5]} 23. Nxd2 {[%clk 0:02:21.1]}
23... b4 {[%clk 0:01:02.2]} 24. f4 {[%clk 0:02:18.2]} 24... Qa7 {[%clk
0:01:01.7]} 25. Nf3 {[%clk 0:02:17.9]} 25... Qa2 {[%clk 0:00:50.7]} 26. f5
{[%clk 0:02:15.5]} 26... c3 {[%clk 0:00:27.4]} 27. f6 {[%clk 0:02:11.2]} 27...
b3 {[%clk 0:00:23.8]} 28. Qf5 {[%clk 0:01:49.4]} 28... Qxb2 {[%clk 0:00:16.9]}
29. Qd7 {[%clk 0:01:48]} 29... Rb8 {[%clk 0:00:14.4]} 30. e6 {[%clk 0:01:48]}
30... fxe6 {[%clk 0:00:10.5]} 31. Qxg7# {[%clk 0:01:42.8]} 1-0

[Event "Late-Titled-Tuesday-Blitz-October-10-2023"]
[Site "Chess.com"]
[Date "2023.10.10"]
[Round "1"]
[White "kuli4ik"]
[Black "Gentlejimmy7"]
[Result "1-0"]
[WhiteElo "2942"]
[BlackElo "2497"]
[TimeControl "180+1"]
[EndTime "14:05:28 PDT"]
[Termination "kuli4ik won by resignation"]

1. Nf3 {[%clk 0:03:00.9]} 1... f5 {[%clk 0:02:57.6]} 2. d3 {[%clk 0:03:00.8]}
2... Nc6 {[%clk 0:02:33.6]} 3. d4 {[%clk 0:02:59.9]} 3... d5 {[%clk 0:02:30.6]}
4. c4 {[%clk 0:02:51.2]} 4... e6 {[%clk 0:02:30]} 5. Nc3 {[%clk 0:02:51.6]} 5...
Nf6 {[%clk 0:02:29.9]} 6. Bf4 {[%clk 0:02:51.6]} 6... Bb4 {[%clk 0:02:29.5]} 7.
e3 {[%clk 0:02:51.5]} 7... Ne4 {[%clk 0:02:29.6]} 8. Rc1 {[%clk 0:02:50.5]} 8...
O-O {[%clk 0:02:29]} 9. Be2 {[%clk 0:02:50.4]} 9... h6 {[%clk 0:02:09.7]} 10. h3
{[%clk 0:02:46]} 10... Nxc3 {[%clk 0:01:45.5]} 11. bxc3 {[%clk 0:02:45.1]} 11...
Bd6 {[%clk 0:01:46.4]} 12. O-O {[%clk 0:02:36.6]} 12... Bxf4 {[%clk 0:01:46.1]}
13. exf4 {[%clk 0:02:34.8]} 13... Ne7 {[%clk 0:01:42.2]} 14. Re1 {[%clk
0:02:33.3]} 14... c6 {[%clk 0:01:42.3]} 15. Bd3 {[%clk 0:02:31.4]} 15... Bd7
{[%clk 0:01:41.1]} 16. Qb3 {[%clk 0:02:28.8]} 16... Qb6 {[%clk 0:01:35.3]} 17.
Ne5 {[%clk 0:02:26.7]} 17... Qxb3 {[%clk 0:01:31.4]} 18. axb3 {[%clk 0:02:26.4]}
18... Be8 {[%clk 0:01:31.5]} 19. c5 {[%clk 0:02:25]} 19... Rf6 {[%clk
0:01:28.9]} 20. g3 {[%clk 0:02:24.7]} 20... Ng6 {[%clk 0:01:27.6]} 21. Nf3
{[%clk 0:02:24.4]} 21... Bd7 {[%clk 0:01:27.3]} 22. Re2 {[%clk 0:02:24.4]} 22...
b6 {[%clk 0:01:22.1]} 23. Ra2 {[%clk 0:02:23.2]} 23... bxc5 {[%clk 0:00:48.3]}
24. dxc5 {[%clk 0:02:24.1]} 24... Rf7 {[%clk 0:00:47]} 25. Rca1 {[%clk
0:02:21.7]} 25... Be8 {[%clk 0:00:47.2]} 26. h4 {[%clk 0:02:17.8]} 26... Rb7
{[%clk 0:00:46.8]} 27. b4 {[%clk 0:02:17]} 27... Re7 {[%clk 0:00:35.5]} 28. Nd4
{[%clk 0:02:14.2]} 28... Nf8 {[%clk 0:00:26.2]} 29. Ra6 {[%clk 0:02:11.8]} 29...
Rc7 {[%clk 0:00:24.2]} 30. Bc2 {[%clk 0:02:12.4]} 30... g6 {[%clk 0:00:23.9]}
31. R1a5 {[%clk 0:02:04.1]} 31... Bd7 {[%clk 0:00:20]} 32. Ba4 {[%clk
0:02:02.9]} 32... Re8 {[%clk 0:00:12.5]} 33. Rxa7 {[%clk 0:02:01.1]} 33... Rxa7
{[%clk 0:00:13.4]} 34. Rxa7 {[%clk 0:02:01.1]} 34... e5 {[%clk 0:00:14.3]} 35.
fxe5 {[%clk 0:02:00.1]} 35... Rxe5 {[%clk 0:00:15.2]} 36. Bxc6 {[%clk 0:02:00]}
36... Bxc6 {[%clk 0:00:12.6]} 37. Nxc6 {[%clk 0:02:00.9]} 37... Re1+ {[%clk
0:00:12.9]} 38. Kg2 {[%clk 0:02:00.9]} 38... Rc1 {[%clk 0:00:13.8]} 39. Ne7+
{[%clk 0:01:59.4]} 39... Kh8 {[%clk 0:00:13.9]} 40. Nxd5 {[%clk 0:01:59.2]}
40... Ne6 {[%clk 0:00:14.2]} 41. c6 {[%clk 0:01:57.9]} 1-0

[Event "Late-Titled-Tuesday-Blitz-October-10-2023"]
[Site "Chess.com"]
[Date "2023.10.10"]
[Round "1"]
[White "Grossboss19"]
[Black "OLDTERMINATOR"]
[Result "1-0"]
[WhiteElo "2525"]
[BlackElo "1590"]
[TimeControl "180+1"]
[EndTime "14:05:33 PDT"]
[Termination "Grossboss19 won on time"]

1. d4 {[%clk 0:02:50.3]} 1... Nf6 {[%clk 0:02:57.8]} 2. c3 {[%clk 0:02:50.5]}
2... g6 {[%clk 0:02:54.9]} 3. Nd2 {[%clk 0:02:48.4]} 3... d5 {[%clk 0:02:52.7]}
4. g3 {[%clk 0:02:47.8]} 4... Bg7 {[%clk 0:02:53]} 5. Bg2 {[%clk 0:02:48.3]}
5... c6 {[%clk 0:02:52.9]} 6. e4 {[%clk 0:02:48.6]} 6... dxe4 {[%clk 0:02:51.2]}
7. Nxe4 {[%clk 0:02:49.5]} 7... Nxe4 {[%clk 0:02:50.9]} 8. Bxe4 {[%clk
0:02:50.3]} 8... O-O {[%clk 0:02:49.8]} 9. Ne2 {[%clk 0:02:49.9]} 9... Nd7
{[%clk 0:02:49.6]} 10. O-O {[%clk 0:02:49.9]} 10... Nf6 {[%clk 0:02:49.4]} 11.
Bg2 {[%clk 0:02:50.5]} 11... Bg4 {[%clk 0:02:47]} 12. h3 {[%clk 0:02:50]} 12...
Bd7 {[%clk 0:02:40.5]} 13. Bf4 {[%clk 0:02:46.5]} 13... Nh5 {[%clk 0:02:36.4]}
14. Bg5 {[%clk 0:02:44.6]} 14... h6 {[%clk 0:02:30.9]} 15. Be3 {[%clk
0:02:44.3]} 15... a5 {[%clk 0:02:24]} 16. g4 {[%clk 0:02:44.2]} 16... Nf6 {[%clk
0:02:22.4]} 17. Qd2 {[%clk 0:02:44.7]} 17... Kh7 {[%clk 0:02:21.1]} 18. Ng3
{[%clk 0:02:45.2]} 18... Nd5 {[%clk 0:02:08.8]} 19. Rae1 {[%clk 0:02:36]} 19...
Re8 {[%clk 0:01:58.7]} 20. f4 {[%clk 0:02:30.2]} 20... Qc7 {[%clk 0:01:49.3]}
21. Bxd5 {[%clk 0:02:12.9]} 21... cxd5 {[%clk 0:01:48.2]} 22. Qg2 {[%clk
0:02:12.9]} 22... Bc6 {[%clk 0:01:16.4]} 23. f5 {[%clk 0:02:11]} 23... a4 {[%clk
0:01:05.9]} 24. a3 {[%clk 0:02:01.7]} 24... Rad8 {[%clk 0:00:55.6]} 25. Rf2
{[%clk 0:01:58.9]} 25... Bf6 {[%clk 0:00:29.7]} 26. Bf4 {[%clk 0:01:56]} 26...
Qc8 {[%clk 0:00:24.7]} 27. Be5 {[%clk 0:01:54.7]} 27... Bh4 {[%clk 0:00:20.5]}
28. fxg6+ {[%clk 0:01:51.4]} 28... Kxg6 {[%clk 0:00:15.6]} 29. Rf3 {[%clk
0:01:41.1]} 29... f6 {[%clk 0:00:14.8]} 30. Qc2+ {[%clk 0:01:40.8]} 1-0

[Event "Late-Titled-Tuesday-Blitz-October-10-2023"]
[Site "Chess.com"]
[Date "2023.10.10"]
[Round "1"]
[White "kreonx"]
[Black "h4parah5"]
[Result "0-1"]
[WhiteElo "2497"]
[BlackElo "2936"]
[TimeControl "180+1"]
[EndTime "14:05:43 PDT"]
[Termination "h4parah5 won by resignation"]

1. e4 {[%clk 0:02:58.9]} 1... c6 {[%clk 0:02:59.2]} 2. d4 {[%clk 0:02:58.3]}
2... d5 {[%clk 0:03:00.1]} 3. exd5 {[%clk 0:02:58.7]} 3... cxd5 {[%clk 0:03:01]}
4. Bd3 {[%clk 0:02:58.9]} 4... Nf6 {[%clk 0:03:01.1]} 5. h3 {[%clk 0:02:58.1]}
5... Nc6 {[%clk 0:03:00.5]} 6. c3 {[%clk 0:02:58.1]} 6... g6 {[%clk 0:02:54.7]}
7. Nf3 {[%clk 0:02:57.6]} 7... Bf5 {[%clk 0:02:54.3]} 8. O-O {[%clk 0:02:56.6]}
8... e6 {[%clk 0:02:53.8]} 9. Re1 {[%clk 0:02:53.5]} 9... Bd6 {[%clk 0:02:44.5]}
10. Bh6 {[%clk 0:02:31.9]} 10... a6 {[%clk 0:02:16.1]} 11. Ne5 {[%clk
0:02:20.7]} 11... Bxe5 {[%clk 0:02:13.5]} 12. dxe5 {[%clk 0:02:20.9]} 12... Nd7
{[%clk 0:02:12.2]} 13. Bf4 {[%clk 0:00:45.4]} 13... Qb6 {[%clk 0:02:02]} 14. Re2
{[%clk 0:00:41.5]} 14... Bxd3 {[%clk 0:01:46.3]} 15. Qxd3 {[%clk 0:00:40.9]}
15... Ndxe5 {[%clk 0:01:36.3]} 16. Bxe5 {[%clk 0:00:14.5]} 16... Nxe5 {[%clk
0:01:36.3]} 17. Rxe5 {[%clk 0:00:15.1]} 17... Qxb2 {[%clk 0:01:36.5]} 18. Re1
{[%clk 0:00:15.7]} 18... Qxa1 {[%clk 0:01:34.7]} 19. Qc2 {[%clk 0:00:15.5]}
19... O-O {[%clk 0:01:32.6]} 20. Rd1 {[%clk 0:00:12.3]} 20... Rac8 {[%clk
0:01:31]} 21. Rd3 {[%clk 0:00:11.2]} 21... Rc5 {[%clk 0:01:26.8]} 22. Kh2 {[%clk
0:00:11.7]} 22... Rb5 {[%clk 0:01:25.1]} 23. Na3 {[%clk 0:00:10.9]} 23... Qb2
{[%clk 0:01:25.1]} 24. Qa4 {[%clk 0:00:09.9]} 24... Qxa2 {[%clk 0:01:21.5]} 25.
Rd4 {[%clk 0:00:08.7]} 25... Rb3 {[%clk 0:01:18.4]} 26. Nc2 {[%clk 0:00:06.4]}
26... Qxc2 {[%clk 0:01:17.8]} 0-1

[Event "Late-Titled-Tuesday-Blitz-October-10-2023"]
[Site "Chess.com"]
[Date "2023.10.10"]
[Round "1"]
[White "Gravity_Chess"]
[Black "vladoboch"]
[Result "1-0"]
[WhiteElo "2878"]
[BlackElo "2455"]
[TimeControl "180+1"]
[EndTime "14:05:54 PDT"]
[Termination "Gravity_Chess won by resignation"]

1. c4 {[%clk 0:02:52.4]} 1... e5 {[%clk 0:02:59.7]} 2. g3 {[%clk 0:02:46.2]}
2... c6 {[%clk 0:02:57.7]} 3. Nf3 {[%clk 0:02:45.3]} 3... e4 {[%clk 0:02:57.2]}
4. Nd4 {[%clk 0:02:45.7]} 4... d5 {[%clk 0:02:57.7]} 5. cxd5 {[%clk 0:02:46.5]}
5... Qxd5 {[%clk 0:02:58.1]} 6. Nc2 {[%clk 0:02:43.9]} 6... Nf6 {[%clk
0:02:57.7]} 7. Bg2 {[%clk 0:02:43.9]} 7... Bc5 {[%clk 0:02:57.2]} 8. Nc3 {[%clk
0:02:43.9]} 8... Qe5 {[%clk 0:02:52]} 9. O-O {[%clk 0:02:43.1]} 9... O-O {[%clk
0:02:51.9]} 10. d4 {[%clk 0:02:43.6]} 10... exd3 {[%clk 0:02:51.4]} 11. exd3
{[%clk 0:02:44.5]} 11... Bg4 {[%clk 0:02:42]} 12. Qe1 {[%clk 0:02:35.8]} 12...
Qh5 {[%clk 0:02:40.2]} 13. Bf4 {[%clk 0:02:29.1]} 13... Re8 {[%clk 0:02:36.6]}
14. Qd2 {[%clk 0:02:23.9]} 14... Nbd7 {[%clk 0:02:31.7]} 15. d4 {[%clk
0:02:17.7]} 15... Bf8 {[%clk 0:02:19.5]} 16. f3 {[%clk 0:01:56.2]} 16... Bh3
{[%clk 0:02:18.5]} 17. g4 {[%clk 0:01:56.7]} 17... Nxg4 {[%clk 0:02:02.8]} 18.
fxg4 {[%clk 0:01:57.1]} 18... Bxg4 {[%clk 0:02:03.4]} 19. Bg3 {[%clk 0:01:57.8]}
19... Nb6 {[%clk 0:01:48.5]} 20. Rae1 {[%clk 0:01:48.5]} 20... Nc4 {[%clk
0:01:43.8]} 21. Qc1 {[%clk 0:01:42.3]} 21... g6 {[%clk 0:01:26.4]} 22. Qf4
{[%clk 0:01:34.6]} 22... Be6 {[%clk 0:01:03.3]} 23. Ne4 {[%clk 0:01:29]} 23...
Bg7 {[%clk 0:00:59.1]} 24. b3 {[%clk 0:01:20.4]} 24... Nb6 {[%clk 0:00:50.9]}
25. Nf6+ {[%clk 0:01:20.6]} 25... Bxf6 {[%clk 0:00:51]} 26. Qxf6 {[%clk
0:01:21.5]} 26... Nd5 {[%clk 0:00:48.7]} 27. Bxd5 {[%clk 0:01:17.2]} 27... Bxd5
{[%clk 0:00:48.1]} 28. Ne3 {[%clk 0:01:10.4]} 28... Be4 {[%clk 0:00:44.7]} 29.
Qh4 {[%clk 0:01:08.2]} 29... Qa5 {[%clk 0:00:38.9]} 30. Ng4 {[%clk 0:01:08]} 1-0

[Event "Late-Titled-Tuesday-Blitz-October-10-2023"]
[Site "Chess.com"]
[Date "2023.10.10"]
[Round "1"]
[White "Dhaydon19"]
[Black "topin8"]
[Result "1-0"]
[WhiteElo "2791"]
[BlackElo "2422"]
[TimeControl "180+1"]
[EndTime "14:05:54 PDT"]
[Termination "Dhaydon19 won by checkmate"]

1. d4 {[%clk 0:03:00.9]} 1... Nf6 {[%clk 0:02:59]} 2. Nc3 {[%clk 0:03:01.1]}
2... c5 {[%clk 0:02:58]} 3. d5 {[%clk 0:03:00.5]} 3... d6 {[%clk 0:02:58.3]} 4.
e4 {[%clk 0:03:00.6]} 4... g6 {[%clk 0:02:58.6]} 5. a4 {[%clk 0:03:00.3]} 5...
Bg7 {[%clk 0:02:58.3]} 6. Bb5+ {[%clk 0:02:59.3]} 6... Nfd7 {[%clk 0:02:58.5]}
7. Nge2 {[%clk 0:02:57.9]} 7... O-O {[%clk 0:02:58.6]} 8. O-O {[%clk 0:02:57.1]}
8... Na6 {[%clk 0:02:59.1]} 9. h3 {[%clk 0:02:55.1]} 9... Nc7 {[%clk 0:02:59.4]}
10. Bc4 {[%clk 0:02:54.6]} 10... a6 {[%clk 0:02:58.1]} 11. a5 {[%clk 0:02:53.7]}
11... b5 {[%clk 0:02:58.6]} 12. axb6 {[%clk 0:02:53]} 12... Nxb6 {[%clk
0:02:59.1]} 13. Ba2 {[%clk 0:02:49.5]} 13... Nb5 {[%clk 0:02:58.8]} 14. Bd2
{[%clk 0:02:46.2]} 14... f5 {[%clk 0:02:58.3]} 15. exf5 {[%clk 0:02:30.2]} 15...
Bxf5 {[%clk 0:02:56.3]} 16. Ng3 {[%clk 0:02:29.8]} 16... Kh8 {[%clk 0:02:53.6]}
17. Re1 {[%clk 0:02:27.4]} 17... Ra7 {[%clk 0:02:32.6]} 18. Nxf5 {[%clk
0:02:06.2]} 18... Rxf5 {[%clk 0:02:32]} 19. Ne4 {[%clk 0:02:05.7]} 19... Bxb2
{[%clk 0:02:15.5]} 20. c4 {[%clk 0:02:04.7]} 20... Bg7 {[%clk 0:02:16.1]} 21.
cxb5 {[%clk 0:01:59]} 21... axb5 {[%clk 0:02:13.3]} 22. Bc3 {[%clk 0:01:57.5]}
22... Bxc3 {[%clk 0:02:06.4]} 23. Nxc3 {[%clk 0:01:57.4]} 23... b4 {[%clk
0:02:07]} 24. Ne4 {[%clk 0:01:52.8]} 24... Qa8 {[%clk 0:02:05.2]} 25. Qc2 {[%clk
0:01:49.8]} 25... Nxd5 {[%clk 0:01:49.7]} 26. Bxd5 {[%clk 0:01:41.6]} 26... Rxd5
{[%clk 0:01:42.3]} 27. Qb2+ {[%clk 0:01:40.2]} 27... Rd4 {[%clk 0:01:36.5]} 28.
Rxa7 {[%clk 0:01:33.5]} 28... Qxa7 {[%clk 0:01:35.7]} 29. Ra1 {[%clk 0:01:33.9]}
29... Qb7 {[%clk 0:01:26.4]} 30. Ng5 {[%clk 0:01:30.4]} 30... e5 {[%clk
0:01:20.3]} 31. Nf3 {[%clk 0:01:26.6]} 31... Re4 {[%clk 0:00:41.8]} 32. Qd2
{[%clk 0:01:18.4]} 32... b3 {[%clk 0:00:19.5]} 33. Qxd6 {[%clk 0:01:12.9]} 33...
b2 {[%clk 0:00:18.2]} 34. Qf8# {[%clk 0:01:12.3]} 1-0